fUST/lending_fUST_20250705
["ID","MTS","AMOUNT","RATE_DAILY","PERIOD"]
[369762814,1751721043993,-460.0,0.00019452,2]
[369762816,1751721044003,-4814.61,0.00019452,2]
[369762818,1751721044012,-460.0,0.00019452,2]
[369762819,1751721044022,-460.0,0.00019452,2]
[369762821,1751721044032,-460.0,0.00019452,2]
[369762823,1751721044041,-460.29070691,0.00019452,2]
[369762825,1751721044051,-460.0,0.00019452,2]
[369762827,1751721044060,-460.0,0.00019452,2]
[369762829,1751721044069,-1599.55,0.00019452,2]
[369762831,1751721044079,-514.12,0.00019452,2]
[369762833,1751721044088,-973.56,0.00019452,2]
[369762835,1751721044097,-485.31,0.00019452,2]
[369762837,1751721044107,-572.31,0.00019452,2]
[369762839,1751721044116,-2742.75,0.00019452,2]
[369762841,1751721044125,-3855.89,0.00019452,2]
[369762842,1751721044134,-510.10745834,0.00019452,2]
[369762844,1751721044143,-802.19,0.00019452,2]
[369762846,1751721044153,-460.0,0.00019452,2]
[369762848,1751721044162,-1728.61,0.00019452,2]
[369762850,1751721044171,-8078.38,0.00019452,2]
[369762852,1751721044181,-460.0,0.00019452,2]
[369762854,1751721044190,-627.96,0.00019452,2]
[369762856,1751721044200,-202.77508755,0.00019452,2]
[369762858,1751721044209,-460.0,0.00019452,2]
[369762860,1751721044218,-701.36,0.00019452,2]
[369762861,1751721044227,-460.0,0.00019452,2]
[369762863,1751721044236,-508.33,0.00019452,2]
[369762865,1751721044246,-460.0,0.00019452,2]
[369762867,1751721044255,-460.0,0.00019452,2]
[369762869,1751721044264,-460.0,0.00019452,2]
[369762871,1751721044273,-460.0,0.00019452,2]
[369762873,1751721044283,-460.0,0.00019452,2]
[369762875,1751721044294,-460.0,0.00019452,2]
[369762877,1751721044303,-460.0,0.00019452,2]
[369762879,1751721044312,-460.0,0.00019452,2]
[369762881,1751721044322,-460.0,0.00019452,2]
[369762883,1751721044331,-460.0,0.00019452,2]
[369762885,1751721044341,-460.0,0.00019452,2]
[369762887,1751721044350,-1283.87,0.00019452,2]
[369762888,1751721044359,-460.0,0.00019452,2]
[369762889,1751721044369,-460.0,0.00019452,2]
[369762890,1751721044379,-460.0,0.00019452,2]
[369762891,1751721044389,-460.0,0.00019452,2]
[369762892,1751721044399,-893.91,0.00019452,2]
[369762893,1751721044409,-460.0,0.00019452,2]
[369762894,1751721044418,-460.0,0.00019452,2]
[369762895,1751721044427,-460.0,0.00019452,2]
[369762896,1751721044437,-460.0,0.00019452,2]
[369762897,1751721044446,-460.0,0.00019452,2]
[369762898,1751721044455,-641.57,0.00019452,2]
[369762899,1751721044465,-460.0,0.00019452,2]
[369762900,1751721044474,-460.0,0.00019452,2]
[369762901,1751721044483,-477.68,0.00019452,2]
[369762902,1751721044493,-2923.74,0.00019452,2]
[369762903,1751721044503,-523.55,0.00019452,2]
[369762904,1751721044514,-504.5,0.00019452,2]
[369762905,1751721044523,-460.0,0.00019452,2]
[369762906,1751721044533,-460.0,0.00019452,2]
[369762907,1751721044543,-970.52,0.00019452,2]
[369762908,1751721044553,-460.0,0.00019452,2]
[369762909,1751721044563,-4026.07,0.00019452,2]
[369762910,1751721044572,-460.0,0.00019452,2]
[369762911,1751721044582,-460.0,0.00019452,2]
[369762912,1751721044591,-355.0,0.00019458,2]
[369762913,1751721044601,-2846.32869634,0.00019469,2]
[369762914,1751721044610,-500.0,0.00019473,2]
[369762915,1751721044620,-366.5862663,0.000195,2]
[369762916,1751721044629,-366.5862663,0.000195,2]
[369762917,1751721044639,-366.5862663,0.000195,2]
[369762918,1751721044648,-337.27632699,0.00019669,2]
[369762919,1751721044658,-366.5862663,0.000197,2]
[369762920,1751721044667,-1000.0,0.00019721,2]
[369762921,1751721044677,-500.0,0.00019721,2]
[369762922,1751721044686,-1000.0,0.00019721,2]
[369762923,1751721044699,-1000.0,0.00019721,2]
[369762924,1751721044708,-1000.0,0.00019721,2]
[369762925,1751721044718,-460.0,0.00019726,2]
[369762926,1751721044727,-460.0,0.00019726,2]
[369762927,1751721044735,-460.0,0.00019726,2]
[369762928,1751721044745,-460.0,0.00019726,2]
[369762929,1751721044754,-460.0,0.00019726,2]
[369762930,1751721044767,-460.0,0.00019726,2]
[369762931,1751721044776,-460.0,0.00019726,2]
[369762932,1751721044786,-460.0,0.00019726,2]
[369762933,1751721044795,-460.0,0.00019726,2]
[369762934,1751721044804,-460.0,0.00019726,2]
[369762935,1751721044814,-460.0,0.00019726,2]
[369762936,1751721044823,-460.0,0.00019726,2]
[369762937,1751721044832,-460.0,0.00019726,2]
[369762938,1751721044841,-460.0,0.00019726,2]
[369762939,1751721044852,-460.0,0.00019726,2]
[369762940,1751721044861,-460.0,0.00019726,2]
[369762941,1751721044870,-460.0,0.00019726,2]
[369762942,1751721044879,-460.0,0.00019726,2]
[369762943,1751721044889,-460.0,0.00019726,2]
[369762944,1751721044898,-460.0,0.00019726,2]
[369762945,1751721044907,-460.0,0.00019726,2]
[369762946,1751721044916,-460.0,0.00019726,2]
[369762947,1751721044925,-460.0,0.00019726,2]
[369762948,1751721044935,-460.0,0.00019726,2]
[369762949,1751721044944,-460.0,0.00019726,2]
[369762950,1751721044954,-460.0,0.00019726,2]
[369762951,1751721044963,-460.0,0.00019726,2]
[369762952,1751721044973,-460.0,0.00019726,2]
[369762953,1751721044983,-460.0,0.00019726,2]
[369762954,1751721044992,-460.0,0.00019726,2]
[369762955,1751721045115,-460.0,0.00019726,2]
[369762956,1751721045125,-460.0,0.00019726,2]
[369762957,1751721045135,-225.97942804,0.00019726,2]
[369762958,1751721045144,-329.95777034,0.00019726,2]
[369762959,1751721045153,-460.0,0.00019726,2]
[369762960,1751721045163,-460.0,0.00019726,2]
[369762961,1751721045172,-460.0,0.00019726,2]
[369762962,1751721045181,-460.0,0.00019726,2]
[369762963,1751721045191,-460.0,0.00019726,2]
[369762964,1751721045200,-460.0,0.00019726,2]
[369762965,1751721045209,-460.0,0.00019726,2]
[369762966,1751721045219,-460.0,0.00019726,2]
[369762967,1751721045228,-460.0,0.00019726,2]
[369762968,1751721045237,-460.0,0.00019726,2]
[369762969,1751721045247,-268.57821066,0.00019726,2]
[369762970,1751721045257,-460.0,0.00019726,2]
[369762971,1751721045266,-460.0,0.00019726,2]
[369762972,1751721045275,-460.0,0.00019726,2]
[369762973,1751721045285,-460.0,0.00019726,2]
[369762974,1751721045294,-460.0,0.00019726,2]
[369762975,1751721045304,-522.94,0.00019726,2]
[369762976,1751721045313,-500.0,0.00019726,2]
[369762977,1751721045322,-460.0,0.00019726,2]
[369762978,1751721045332,-1210.27,0.00019726,2]
[369762979,1751721045342,-460.0,0.00019726,2]
[369762980,1751721045352,-460.0,0.00019726,2]
[369762981,1751721045361,-460.0,0.00019726,2]
[369762982,1751721045370,-460.0,0.00019726,2]
[369762983,1751721045380,-687.52,0.00019726,2]
[369762984,1751721045389,-460.0,0.00019726,2]
[369762985,1751721045399,-460.0,0.00019726,2]
[369762986,1751721045408,-326.43467925,0.00019726,2]
[369762987,1751721045417,-460.0,0.00019726,2]
[369762988,1751721045427,-460.0,0.00019726,2]
[369762989,1751721045437,-460.0,0.00019726,2]
[369762990,1751721045447,-460.0,0.00019726,2]
[369762991,1751721045456,-460.0,0.00019726,2]
[369762992,1751721045466,-460.0,0.00019726,2]
[369762993,1751721045476,-460.0,0.00019726,2]
[369762994,1751721045485,-272.11459268,0.00019726,2]
[369762995,1751721045495,-460.0,0.00019726,2]
[369762996,1751721045505,-460.0,0.00019726,2]
[369762997,1751721045515,-460.0,0.00019726,2]
[369762998,1751721045526,-460.0,0.00019726,2]
[369762999,1751721045536,-460.0,0.00019726,2]
[369763000,1751721045545,-460.0,0.00019726,2]
[369763001,1751721045555,-460.0,0.00019726,2]
[369763002,1751721045565,-460.0,0.00019726,2]
[369763003,1751721045574,-460.0,0.00019726,2]
[369763004,1751721045584,-460.0,0.00019726,2]
[369763005,1751721045593,-460.0,0.00019726,2]
[369763006,1751721045603,-460.0,0.00019726,2]
[369763007,1751721045613,-460.0,0.00019726,2]
[369763008,1751721045622,-460.0,0.00019726,2]
[369763009,1751721045631,-460.0,0.00019726,2]
[369763010,1751721045640,-460.0,0.00019726,2]
[369763011,1751721045650,-963.22,0.00019726,2]
[369763012,1751721045659,-460.0,0.00019726,2]
[369763013,1751721045669,-460.0,0.00019726,2]
[369763014,1751721045679,-460.0,0.00019726,2]
[369763015,1751721045688,-460.0,0.00019726,2]
[369763016,1751721045697,-460.0,0.00019726,2]
[369763017,1751721045706,-460.0,0.00019726,2]
[369763018,1751721045716,-460.0,0.00019726,2]
[369763019,1751721045725,-460.0,0.00019726,2]
[369763020,1751721045735,-460.0,0.00019726,2]
[369763021,1751721045744,-460.0,0.00019726,2]
[369763022,1751721045753,-622.77,0.00019726,2]
[369763023,1751721045767,-460.0,0.00019726,2]
[369763024,1751721045776,-212.08297394,0.00019726,2]
[369763025,1751721045795,-460.0,0.00019726,2]
[369763026,1751721045809,-460.0,0.00019726,2]
[369763027,1751721045819,-552.6,0.00019726,2]
[369763028,1751721045829,-460.0,0.00019726,2]
[369763029,1751721045840,-460.0,0.00019726,2]
[369763030,1751721045850,-460.0,0.00019726,2]
[369763031,1751721045860,-460.0,0.00019726,2]
[369763032,1751721045870,-538.94,0.00019726,2]
[369763033,1751721045880,-460.0,0.00019726,2]
[369763034,1751721045890,-314.27519119,0.00019726,2]
[369763035,1751721045900,-460.0,0.00019726,2]
[369763036,1751721045909,-460.0,0.00019726,2]
[369763037,1751721045919,-460.0,0.00019726,2]
[369763038,1751721045929,-460.0,0.00019726,2]
[369763039,1751721045938,-925.19,0.00019726,2]
[369763040,1751721045948,-548.35,0.00019726,2]
[369763041,1751721045959,-460.0,0.00019726,2]
[369763042,1751721045969,-460.0,0.00019726,2]
[369763043,1751721045980,-460.0,0.00019726,2]
[369763044,1751721045989,-602.03090606,0.00019726,2]
[369763045,1751721045999,-460.0,0.00019726,2]
[369763046,1751721046009,-460.0,0.00019726,2]
[369763047,1751721046018,-460.0,0.00019726,2]
[369763048,1751721046027,-460.0,0.00019726,2]
[369763049,1751721046037,-460.0,0.00019726,2]
[369763050,1751721046046,-460.0,0.00019726,2]
[369763051,1751721046055,-460.0,0.00019726,2]
[369763052,1751721046065,-460.0,0.00019726,2]
[369763053,1751721046075,-460.0,0.00019726,2]
[369763054,1751721046084,-460.0,0.00019726,2]
[369763055,1751721046093,-460.0,0.00019726,2]
[369763056,1751721046103,-460.0,0.00019726,2]
[369763057,1751721046113,-460.0,0.00019726,2]
[369763058,1751721046122,-460.0,0.00019726,2]
[369763059,1751721046132,-710.67,0.00019726,2]
[369763060,1751721046142,-460.0,0.00019726,2]
[369763061,1751721046151,-504.45605928,0.00019726,2]
[369763062,1751721046160,-460.0,0.00019726,2]
[369763063,1751721046169,-460.0,0.00019726,2]
[369763064,1751721046179,-460.0,0.00019726,2]
[369763065,1751721046191,-556.92,0.00019726,2]
[369763066,1751721046200,-460.0,0.00019726,2]
[369763067,1751721046210,-460.0,0.00019726,2]
[369763068,1751721046219,-460.0,0.00019726,2]
[369763069,1751721046228,-460.0,0.00019726,2]
[369763070,1751721046237,-460.0,0.00019726,2]
[369763071,1751721046246,-460.0,0.00019726,2]
[369763072,1751721046256,-460.0,0.00019726,2]
[369763073,1751721046265,-460.0,0.00019726,2]
[369763074,1751721046275,-460.0,0.00019726,2]
[369763075,1751721046284,-460.0,0.00019726,2]
[369763076,1751721046294,-476.09,0.00019726,2]
[369763077,1751721046303,-460.0,0.00019726,2]
[369763078,1751721046313,-460.0,0.00019726,2]
[369763079,1751721046322,-460.0,0.00019726,2]
[369763080,1751721046333,-460.0,0.00019726,2]
[369763081,1751721046343,-460.0,0.00019726,2]
[369763082,1751721046352,-460.0,0.00019726,2]
[369763083,1751721046362,-591.66,0.00019726,2]
[369763084,1751721046371,-460.0,0.00019726,2]
[369763085,1751721046381,-460.0,0.00019726,2]
[369763086,1751721046391,-460.0,0.00019726,2]
[369763087,1751721046400,-1596.43,0.00019726,2]
[369763088,1751721046414,-460.0,0.00019726,2]
[369763089,1751721046424,-517.64,0.00019726,2]
[369763090,1751721046434,-460.0,0.00019726,2]
[369763091,1751721046444,-460.0,0.00019726,2]
[369763092,1751721046453,-460.0,0.00019726,2]
[369763093,1751721046462,-460.0,0.00019726,2]
[369763094,1751721046472,-1080.05,0.00019726,2]
[369763095,1751721046482,-262.1016453,0.00019726,2]
[369763096,1751721046492,-460.0,0.00019726,2]
[369763097,1751721046501,-503.61,0.00019726,2]
[369763098,1751721046511,-460.0,0.00019726,2]
[369763099,1751721046521,-460.0,0.00019726,2]
[369763100,1751721046531,-460.0,0.00019726,2]
[369763101,1751721046541,-460.0,0.00019726,2]
[369763102,1751721046550,-460.0,0.00019726,2]
[369763103,1751721046561,-460.0,0.00019726,2]
[369763104,1751721046571,-460.0,0.00019726,2]
[369763105,1751721046581,-460.0,0.00019726,2]
[369763106,1751721046591,-460.0,0.00019726,2]
[369763107,1751721046600,-460.0,0.00019726,2]
[369763108,1751721046610,-726.57,0.00019726,2]
[369763109,1751721046620,-460.0,0.00019726,2]
[369763110,1751721046630,-460.0,0.00019726,2]
[369763111,1751721046639,-460.0,0.00019726,2]
[369763112,1751721046648,-460.0,0.00019726,2]
[369763113,1751721046658,-460.0,0.00019726,2]
[369763114,1751721046668,-460.0,0.00019726,2]
[369763115,1751721046677,-460.0,0.00019726,2]
[369763116,1751721046687,-460.0,0.00019726,2]
[369763117,1751721046696,-460.0,0.00019726,2]
[369763118,1751721046706,-1216.59,0.00019726,2]
[369763119,1751721046715,-471.33,0.00019726,2]
[369763120,1751721046725,-460.0,0.00019726,2]
[369763121,1751721046734,-173.60988698,0.00019726,2]
[369763122,1751721046744,-460.0,0.00019726,2]
[369763123,1751721046754,-460.0,0.00019726,2]
[369763124,1751721046768,-644.53,0.00019726,2]
[369763125,1751721046777,-460.0,0.00019726,2]
[369763126,1751721046787,-461.64086314,0.00019726,2]
[369763127,1751721046797,-460.0,0.00019726,2]
[369763128,1751721046807,-460.0,0.00019726,2]
[369763129,1751721046816,-460.0,0.00019726,2]
[369763130,1751721046826,-460.0,0.00019726,2]
[369763131,1751721046836,-460.0,0.00019726,2]
[369763132,1751721046846,-460.0,0.00019726,2]
[369763133,1751721046857,-1557.5,0.00019726,2]
[369763134,1751721046866,-460.0,0.00019726,2]
[369763135,1751721046875,-460.0,0.00019726,2]
[369763136,1751721046885,-460.0,0.00019726,2]
[369763137,1751721046895,-6156.78,0.00019726,2]
[369763138,1751721046906,-460.0,0.00019726,2]
[369763139,1751721046915,-460.0,0.00019726,2]
[369763140,1751721046926,-460.0,0.00019726,2]
[369763141,1751721046938,-555.5,0.00019726,2]
[369763142,1751721046948,-173.78674107,0.00019726,2]
[369763143,1751721046959,-1370.86,0.00019726,2]
[369763144,1751721046971,-460.0,0.00019726,2]
[369763145,1751721046980,-460.0,0.00019726,2]
[369763146,1751721046990,-460.0,0.00019726,2]
[369763147,1751721047000,-500.48,0.00019726,2]
[369763148,1751721047009,-460.0,0.00019726,2]
[369763149,1751721047019,-460.0,0.00019726,2]
[369763150,1751721047031,-466.74,0.00019726,2]
[369763151,1751721047190,-460.0,0.00019726,2]
[369763152,1751721047200,-4601.49,0.00019726,2]
[369763153,1751721047210,-1347.08,0.00019726,2]
[369763154,1751721047219,-460.0,0.00019726,2]
[369763155,1751721047228,-1597.36,0.00019726,2]
[369763156,1751721047237,-1464.28,0.00019726,2]
[369763157,1751721047246,-460.0,0.00019726,2]
[369763158,1751721047255,-460.0,0.00019726,2]
[369763159,1751721047265,-460.0,0.00019726,2]
[369763160,1751721047274,-460.0,0.00019726,2]
[369763161,1751721047283,-460.0,0.00019726,2]
[369763162,1751721047293,-4875.51,0.00019726,2]
[369763163,1751721047303,-460.0,0.00019726,2]
[369763164,1751721047312,-2467.61,0.00019726,2]
[369763165,1751721047322,-553.63,0.00019726,2]
[369763166,1751721047331,-460.0,0.00019726,2]
[369763167,1751721047341,-460.0,0.00019726,2]
[369763168,1751721047350,-460.0,0.00019726,2]
[369763169,1751721047360,-460.0,0.00019726,2]
[369763170,1751721047369,-310.04337893,0.00019726,2]
[369763171,1751721047379,-460.0,0.00019726,2]
[369763172,1751721047388,-460.0,0.00019726,2]
[369763173,1751721047398,-460.0,0.00019726,2]
[369763174,1751721047407,-460.0,0.00019726,2]
[369763175,1751721047417,-460.0,0.00019726,2]
[369763176,1751721047427,-460.0,0.00019726,2]
[369763177,1751721047437,-1010.40171051,0.00019726,2]
[369763178,1751721047447,-373.84501056,0.00019726,2]
[369763179,1751721047456,-460.0,0.00019726,2]
[369763180,1751721047466,-460.0,0.00019726,2]
[369763181,1751721047475,-460.0,0.00019726,2]
[369763182,1751721047485,-460.0,0.00019726,2]
[369763183,1751721047495,-4457.69,0.00019726,2]
[369763184,1751721047505,-460.0,0.00019726,2]
[369763185,1751721047515,-460.0,0.00019726,2]
[369763186,1751721047525,-460.0,0.00019726,2]
[369763187,1751721047535,-460.0,0.00019726,2]
[369763188,1751721047544,-959.85,0.00019726,2]
[369763189,1751721047554,-460.0,0.00019726,2]
[369763190,1751721047563,-460.0,0.00019726,2]
[369763191,1751721047574,-479.5,0.00019726,2]
[369763192,1751721047583,-5048.11,0.00019726,2]
[369763193,1751721047593,-460.0,0.00019726,2]
[369763194,1751721047602,-460.0,0.00019726,2]
[369763195,1751721047612,-460.0,0.00019726,2]
[369763196,1751721047621,-443.39826735,0.00019726,2]
[369763197,1751721047632,-2254.67,0.00019726,2]
[369763198,1751721047641,-460.0,0.00019726,2]
[369763199,1751721047651,-7943.53,0.00019726,2]
[369763200,1751721047661,-460.0,0.00019726,2]
[369763201,1751721047671,-460.0,0.00019726,2]
[369763202,1751721047680,-460.0,0.00019726,2]
[369763203,1751721047690,-335.19693677,0.00019726,2]
[369763204,1751721047699,-460.0,0.00019726,2]
[369763205,1751721047709,-460.0,0.00019726,2]
[369763206,1751721047718,-460.0,0.00019726,2]
[369763207,1751721047728,-460.0,0.00019726,2]
[369763208,1751721047737,-460.0,0.00019726,2]
[369763209,1751721047746,-460.0,0.00019726,2]
[369763210,1751721047755,-679.18,0.00019726,2]
[369763211,1751721047768,-460.0,0.00019726,2]
[369763212,1751721047777,-460.0,0.00019726,2]
[369763213,1751721047787,-1069.14,0.00019726,2]
[369763214,1751721047796,-662.99,0.00019726,2]
[369763215,1751721047806,-460.0,0.00019726,2]
[369763216,1751721047816,-4189.72,0.00019726,2]
[369763217,1751721047825,-460.0,0.00019726,2]
[369763218,1751721047836,-1029.23,0.00019726,2]
[369763219,1751721047846,-460.0,0.00019726,2]
[369763220,1751721047855,-460.0,0.00019726,2]
[369763221,1751721047864,-460.0,0.00019726,2]
[369763222,1751721047874,-460.0,0.00019726,2]
[369763223,1751721047893,-460.0,0.00019726,2]
[369763224,1751721047904,-460.0,0.00019726,2]
[369763225,1751721047914,-460.0,0.00019726,2]
[369763226,1751721047924,-460.0,0.00019726,2]
[369763227,1751721047934,-2585.72,0.00019726,2]
[369763228,1751721047944,-1163.78,0.00019726,2]
[369763229,1751721047954,-460.0,0.00019726,2]
[369763230,1751721047964,-162.22314642,0.00019726,2]
[369763231,1751721047975,-3838.69,0.00019726,2]
[369763232,1751721047985,-460.0,0.00019726,2]
[369763233,1751721047995,-498.69,0.00019726,2]
[369763234,1751721048005,-3395.42,0.00019726,2]
[369763235,1751721048015,-460.0,0.00019726,2]
[369763236,1751721048025,-460.0,0.00019726,2]
[369763237,1751721048035,-460.0,0.00019726,2]
[369763238,1751721048045,-709.77,0.00019726,2]
[369763239,1751721048054,-460.0,0.00019726,2]
[369763240,1751721048064,-560.08,0.00019726,2]
[369763241,1751721048074,-460.0,0.00019726,2]
[369763242,1751721048083,-460.0,0.00019726,2]
[369763243,1751721048093,-460.0,0.00019726,2]
[369763244,1751721048103,-460.0,0.00019726,2]
[369763245,1751721048114,-2248.5,0.00019726,2]
[369763246,1751721048124,-460.0,0.00019726,2]
[369763247,1751721048134,-460.0,0.00019726,2]
[369763248,1751721048144,-460.0,0.00019726,2]
[369763249,1751721048154,-525.81,0.00019726,2]
[369763250,1751721048164,-2372.17,0.00019726,2]
[369763251,1751721048174,-644.72,0.00019726,2]
[369763252,1751721048183,-151.0,0.00019726,2]
[369763253,1751721048193,-151.0,0.00019726,2]
[369763254,1751721048203,-900.96,0.00019726,2]
[369763255,1751721048212,-11199.79,0.00019726,2]
[369763256,1751721048222,-460.0,0.00019726,2]
[369763257,1751721048232,-697.04,0.00019726,2]
[369763258,1751721048241,-1584.75,0.00019726,2]
[369763259,1751721048251,-460.0,0.00019726,2]
[369763260,1751721048260,-460.0,0.00019726,2]
[369763261,1751721048270,-460.0,0.00019726,2]
[369763262,1751721048279,-460.0,0.00019726,2]
[369763263,1751721048289,-660.4,0.00019726,2]
[369763264,1751721048299,-460.0,0.00019726,2]
[369763265,1751721048309,-10263.15,0.00019726,2]
[369763266,1751721048319,-460.0,0.00019726,2]
[369763267,1751721048330,-637.37,0.00019726,2]
[369763268,1751721048339,-151.0,0.00019726,2]
[369763269,1751721048351,-1732.45,0.00019726,2]
[369763270,1751721048360,-559.58,0.00019726,2]
[369763271,1751721048369,-460.0,0.00019726,2]
[369763272,1751721048378,-460.0,0.00019726,2]
[369763273,1751721048388,-460.0,0.00019726,2]
[369763274,1751721048399,-1304.19,0.00019726,2]
[369763275,1751721048409,-151.0,0.00019726,2]
[369763276,1751721048419,-460.0,0.00019726,2]
[369763277,1751721048429,-973.5,0.00019726,2]
[369763278,1751721048439,-460.0,0.00019726,2]
[369763279,1751721048449,-460.0,0.00019726,2]
[369763280,1751721048459,-4814.61,0.00019726,2]
[369763281,1751721048469,-460.0,0.00019726,2]
[369763282,1751721048479,-460.0,0.00019726,2]
[369763283,1751721048489,-460.0,0.00019726,2]
[369763284,1751721048499,-460.0,0.00019726,2]
[369763285,1751721048510,-460.0,0.00019726,2]
[369763286,1751721048520,-1599.55,0.00019726,2]
[369763287,1751721048531,-514.12,0.00019726,2]
[369763288,1751721048541,-973.56,0.00019726,2]
[369763289,1751721048551,-485.31,0.00019726,2]
[369763290,1751721048562,-572.31,0.00019726,2]
[369763291,1751721048571,-2742.75,0.00019726,2]
[369763292,1751721048582,-3855.89,0.00019726,2]
[369763293,1751721048591,-802.19,0.00019726,2]
[369763294,1751721048601,-460.0,0.00019726,2]
[369763295,1751721048611,-1728.61,0.00019726,2]
[369763296,1751721048621,-8078.38,0.00019726,2]
[369763297,1751721048631,-627.96,0.00019726,2]
[369763298,1751721048641,-460.0,0.00019726,2]
[369763299,1751721048651,-701.36,0.00019726,2]
[369763300,1751721048661,-460.0,0.00019726,2]
[369763301,1751721048671,-508.33,0.00019726,2]
[369763302,1751721048680,-460.0,0.00019726,2]
[369763303,1751721048690,-460.0,0.00019726,2]
[369763304,1751721048700,-460.0,0.00019726,2]
[369763305,1751721048709,-460.0,0.00019726,2]
[369763306,1751721048719,-160.44642835,0.00019726,2]
[369763307,1751721048729,-460.0,0.00019726,2]
[369763308,1751721048739,-460.0,0.00019726,2]
[369763309,1751721048749,-460.0,0.00019726,2]
[369763310,1751721048758,-151.0,0.00019726,2]
[369763311,1751721048768,-460.0,0.00019726,2]
[369763312,1751721048778,-460.0,0.00019726,2]
[369763313,1751721048787,-1283.87,0.00019726,2]
[369763314,1751721048797,-460.0,0.00019726,2]
[369763315,1751721048807,-236.68465088,0.00019726,2]
[369763316,1751721048816,-460.0,0.00019726,2]
[369763317,1751721048825,-460.0,0.00019726,2]
[369763318,1751721048835,-893.91,0.00019726,2]
[369763319,1751721048845,-151.0,0.00019726,2]
[369763320,1751721048854,-460.0,0.00019726,2]
[369763321,1751721048863,-460.0,0.00019726,2]
[369763322,1751721048872,-460.0,0.00019726,2]
[369763323,1751721048882,-460.0,0.00019726,2]
[369763324,1751721048891,-460.0,0.00019726,2]
[369763325,1751721048900,-641.57,0.00019726,2]
[369763326,1751721048910,-460.0,0.00019726,2]
[369763327,1751721048920,-151.0,0.00019726,2]
[369763328,1751721048930,-460.0,0.00019726,2]
[369763329,1751721048944,-477.68,0.00019726,2]
[369763330,1751721048955,-2923.74,0.00019726,2]
[369763331,1751721048965,-523.55,0.00019726,2]
[369763332,1751721049130,-504.5,0.00019726,2]
[369763333,1751721049140,-460.0,0.00019726,2]
[369763334,1751721049150,-460.0,0.00019726,2]
[369763335,1751721049160,-970.52,0.00019726,2]
[369763336,1751721049170,-460.0,0.00019726,2]
[369763337,1751721049179,-4026.07,0.00019726,2]
[369763338,1751721049189,-563.07475524,0.00019726,2]
[369763339,1751721049199,-151.774939,0.00019726,2]
[369763340,1751721049208,-460.0,0.00019726,2]
[369763341,1751721049218,-159.4437807,0.00019753,2]
[369763342,1751721049228,-575.8701278,0.00019753,2]
[369763343,1751721049238,-177.7098476,0.00019753,2]
[369763344,1751721049247,-159.4437807,0.00019753,2]
[369763345,1751721049257,-357.2505987,0.00019753,2]
[369763346,1751721049266,-575.8701278,0.00019753,2]
[369763347,1751721049276,-159.4437807,0.00019753,2]
[369763348,1751721049286,-575.8701278,0.00019753,2]